fUST/lending_fUST_20250225
["ID","MTS","AMOUNT","RATE_DAILY","PERIOD"]
[354342571,1740435052670,-348.263794,0.00014,2]
[354342572,1740435052683,-11717.49999999,0.00014,2]
[354342573,1740435052709,-27080.01177164,0.00014,2]
[354342574,1740435052726,-500.0,0.00013698,2]
[354342575,1740435052736,-18558.26503153,0.00014,2]
[354342576,1740435052748,-33491.2651798,0.00014,2]
[354342577,1740435052760,-4680.10907312,0.00014,2]
[354342578,1740435052771,-4763.33052279,0.00014,2]
[354342579,1740435052783,-494.4021679,0.00014,2]
[354342580,1740435053066,-500.0,0.0001378,2]
[354342581,1740435053076,-109.77117919,0.00013863,2]
[354342582,1740435053089,-314.38752605,0.00013863,2]
[354342583,1740435053099,-111.64155161,0.00014,2]
[354342584,1740435053126,-2849.82809833,0.00014,2]
[354342585,1740435053138,-75134.8000208,0.00014,2]
[354342586,1740435053271,-2569.99999996,0.00014,2]
[354342587,1740435053283,-2807.2,0.00014,2]
[354342588,1740435053295,-25976.22396692,0.00014,2]
[354342589,1740435053307,-135900.00018748,0.00014,2]
[354342590,1740435053318,-111900.00015341,0.00014,2]
[354342591,1740435053330,-18677.6,0.00014,2]
[354342592,1740435053342,-76415.00024,0.00014,2]
[354342593,1740435053364,-29160.000001,0.00014,2]
[354342594,1740435053388,-542601.8601246,0.00014,2]
[354342595,1740435053403,-130500.0000005,0.00014,2]
[354342596,1740435053534,-1912.50000001,0.00014,2]
[354342597,1740435053547,-3825.0,0.00014,2]
[354342598,1740435053559,-23295.0,0.00014,2]
[354342599,1740435053648,-79.16909285,0.00014,2]
[354342600,1740435053719,-546197.12421833,0.00014,2]
[354342601,1740435053728,-252.49577,0.00014,2]
[354342602,1740435053738,-151.0,0.00014,2]
[354342603,1740435053748,-151.0,0.00014,2]
[354342604,1740435053757,-450.0,0.00014,2]
[354342605,1740435053766,-450.0,0.00014,2]
[354342606,1740435053776,-151.0,0.00014,2]
[354342607,1740435053786,-151.0,0.00014,2]
[354342608,1740435053795,-251.496237,0.00014,2]
[354342609,1740435053805,-251.496237,0.00014,2]
[354342610,1740435053825,-151.0,0.00014,2]
[354342611,1740435053839,-176.344604,0.00014,2]
[354342612,1740435053848,-151.0,0.00014,2]
[354342613,1740435053868,-176.344604,0.00014,2]
[354342614,1740435053878,-266.605924,0.00014,2]
[354342615,1740435053888,-248.372028,0.00014,2]
[354342616,1740435053897,-248.372028,0.00014,2]
[354342617,1740435053907,-282.7128,0.00014,2]
[354342618,1740435053916,-282.7128,0.00014,2]
[354342619,1740435053926,-151.0,0.00014,2]
[354342620,1740435053935,-211.61156,0.00014,2]
[354342621,1740435053944,-266.506003,0.00014,2]
[354342622,1740435053953,-266.506003,0.00014,2]
[354342623,1740435053962,-386.632629,0.00014,2]
[354342624,1740435053973,-386.632629,0.00014,2]
[354342625,1740435053982,-151.0,0.00014,2]
[354342626,1740435053991,-307.141916,0.00014,2]
[354342627,1740435054001,-307.141916,0.00014,2]
[354342628,1740435054010,-183.851408,0.00014,2]
[354342629,1740435054019,-151.0,0.00014,2]
[354342630,1740435054029,-151.0,0.00014,2]
[354342631,1740435054038,-2145.306791,0.00014,2]
[354342632,1740435054048,-2145.306791,0.00014,2]
[354342633,1740435054058,-756.962769,0.00014,2]
[354342634,1740435054067,-756.962769,0.00014,2]
[354342635,1740435054077,-300.0,0.00014,4]
[354342636,1740435054087,-159.627817,0.00014,2]
[354342637,1740435054097,-392.342675,0.00014,2]
[354342638,1740435054115,-159.627817,0.00014,2]
[354342639,1740435054125,-392.342675,0.00014,2]
[354342640,1740435054135,-151.0,0.00014,2]
[354342641,1740435054145,-819.744848,0.00014,2]
[354342642,1740435054154,-819.744848,0.00014,2]
[354342643,1740435054165,-151.0,0.00014,2]
[354342644,1740435054176,-511.038228,0.00014,2]
[354342645,1740435054185,-511.038228,0.00014,2]
[354342646,1740435054195,-690.030627,0.00014,2]
[354342647,1740435054205,-1340.771391,0.00014,2]
[354342648,1740435054215,-690.030627,0.00014,2]
[354342649,1740435054224,-1340.771391,0.00014,2]
[354342650,1740435054234,-586.229669,0.00014,2]
[354342651,1740435054244,-586.229669,0.00014,2]
[354342652,1740435054254,-151.0,0.00014,2]
[354342653,1740435054264,-151.0,0.00014,2]
[354342654,1740435054273,-557.4308118,0.00014,2]
[354342655,1740435054283,-163.69,0.00014027,2]
[354342656,1740435054293,-500.0,0.00014027,2]
[354342657,1740435054302,-500.0,0.00014027,2]
[354342658,1740435054312,-500.0,0.00014027,2]
[354342659,1740435054321,-500.0,0.00014027,2]
[354342660,1740435054331,-500.0,0.00014027,2]
[354342661,1740435054341,-500.0,0.00014027,2]
[354342662,1740435054350,-500.0,0.00014027,2]
[354342663,1740435054367,-500.0,0.00014027,2]
[354342664,1740435054377,-500.0,0.00014027,2]
[354342665,1740435054387,-500.0,0.00014027,2]
[354342666,1740435054396,-500.0,0.00014027,2]
[354342667,1740435054407,-500.0,0.00014027,2]
[354342668,1740435054416,-500.0,0.00014027,2]
[354342669,1740435054426,-640.36,0.00014027,2]
[354342670,1740435054436,-760.82,0.00014027,2]
[354342671,1740435054446,-829.91,0.00014027,2]
[354342672,1740435054455,-2969.05,0.00014027,2]
[354342673,1740435054465,-500.0,0.00014027,2]
[354342674,1740435054475,-500.0,0.00014027,2]
[354342675,1740435054485,-500.0,0.00014027,2]
[354342676,1740435054495,-1214.05,0.00014027,2]
[354342677,1740435054505,-500.0,0.00014027,2]
[354342678,1740435054515,-500.0,0.00014027,2]
[354342679,1740435054525,-500.0,0.00014027,2]
[354342680,1740435054535,-500.0,0.00014027,2]
[354342681,1740435054544,-270.52,0.00014027,2]
[354342682,1740435054554,-500.0,0.00014027,2]
[354342683,1740435054564,-500.0,0.00014027,2]
[354342684,1740435054574,-500.0,0.00014027,2]
[354342685,1740435054584,-666.01,0.00014027,2]
[354342686,1740435054593,-500.0,0.00014027,2]
[354342687,1740435054608,-2633.2,0.00014027,2]
[354342688,1740435054621,-1856.81,0.00014027,2]
[354342689,1740435054631,-500.0,0.00014027,2]
[354342690,1740435054640,-234.7,0.00014027,2]
[354342691,1740435054650,-500.0,0.00014027,2]
[354342692,1740435054659,-500.0,0.00014027,2]
[354342693,1740435054669,-195.7,0.00014027,2]
[354342694,1740435054679,-4267.3,0.00014027,2]
[354342695,1740435054689,-674.84,0.00014027,2]
[354342696,1740435054698,-500.0,0.00014027,2]
[354342697,1740435054708,-165.43,0.00014027,2]
[354342698,1740435054718,-500.35,0.00014027,2]
[354342699,1740435054727,-522.83,0.00014027,2]
[354342700,1740435054737,-500.0,0.00014027,2]
[354342701,1740435054747,-168.79,0.00014027,2]
[354342702,1740435054756,-598.94,0.00014027,2]
[354342703,1740435054766,-719.66,0.00014027,2]
[354342704,1740435054777,-500.0,0.00014027,2]
[354342705,1740435054786,-500.0,0.00014027,2]
[354342706,1740435054796,-564.85,0.00014027,2]
[354342707,1740435054807,-625.36,0.00014027,2]
[354342708,1740435054817,-2857.36,0.00014027,2]
[354342709,1740435054827,-500.0,0.00014027,2]
[354342710,1740435054836,-500.0,0.00014027,2]
[354342711,1740435054846,-557.4308118,0.00014055,2]
[354342712,1740435054865,-1114.8616236,0.00014055,2]
[354342713,1740435054875,-989.1611458,0.00014068,2]
[354342714,1740435054885,-450.0,0.00014109,2]
[354342715,1740435054896,-450.0,0.00014109,2]
[354342716,1740435054905,-151.0,0.00014109,2]
[354342717,1740435054915,-151.0,0.00014109,2]
[354342718,1740435054924,-195.576123,0.00014109,2]
[354342719,1740435054935,-251.496237,0.00014109,2]
[354342720,1740435054944,-251.496237,0.00014109,2]
[354342721,1740435054954,-176.344604,0.00014109,2]
[354342722,1740435054964,-151.0,0.00014109,2]
[354342723,1740435054974,-176.344604,0.00014109,2]
[354342724,1740435054984,-248.372028,0.00014109,2]
[354342725,1740435054993,-248.372028,0.00014109,2]
[354342726,1740435055003,-282.7128,0.00014109,2]
[354342727,1740435055013,-282.7128,0.00014109,2]
[354342728,1740435055023,-151.0,0.00014109,2]
[354342729,1740435055032,-500.0,0.00014109,2]
[354342730,1740435055043,-266.506003,0.00014109,2]
[354342731,1740435055053,-266.506003,0.00014109,2]
[354342732,1740435055062,-500.0,0.00014109,2]
[354342733,1740435055072,-386.632629,0.00014109,2]
[354342734,1740435055081,-500.0,0.00014109,2]
[354342735,1740435055091,-386.632629,0.00014109,2]
[354342736,1740435055100,-500.0,0.00014109,2]
[354342737,1740435055120,-500.0,0.00014109,2]
[354342738,1740435055130,-500.0,0.00014109,2]
[354342739,1740435055141,-307.141916,0.00014109,2]
[354342740,1740435055152,-307.141916,0.00014109,2]
[354342741,1740435055162,-500.0,0.00014109,2]
[354342742,1740435055172,-151.0,0.00014109,2]
[354342743,1740435055183,-151.0,0.00014109,2]
[354342744,1740435055193,-500.0,0.00014109,2]
[354342745,1740435055203,-509.44,0.00014109,2]
[354342746,1740435055213,-2145.306791,0.00014109,2]
[354342747,1740435055224,-2145.306791,0.00014109,2]
[354342748,1740435055234,-756.962769,0.00014109,2]
[354342749,1740435055245,-756.962769,0.00014109,2]
[354342750,1740435055255,-500.0,0.00014109,2]
[354342751,1740435055264,-500.0,0.00014109,2]
[354342752,1740435055275,-638.48,0.00014109,2]
[354342753,1740435055284,-500.0,0.00014109,2]
[354342754,1740435055294,-159.627817,0.00014109,2]
[354342755,1740435055303,-392.342675,0.00014109,2]
[354342756,1740435055312,-159.627817,0.00014109,2]
[354342757,1740435055322,-392.342675,0.00014109,2]
[354342758,1740435055332,-240.187501,0.00014109,2]
[354342759,1740435055341,-819.744848,0.00014109,2]
[354342760,1740435055352,-819.744848,0.00014109,2]
[354342761,1740435055369,-204.183641,0.00014109,2]
[354342762,1740435055379,-760.82,0.00014109,2]
[354342763,1740435055389,-829.91,0.00014109,2]
[354342764,1740435055398,-2969.05,0.00014109,2]
[354342765,1740435055408,-500.0,0.00014109,2]
[354342766,1740435055418,-500.0,0.00014109,2]
[354342767,1740435055428,-500.0,0.00014109,2]
[354342768,1740435055438,-1214.05,0.00014109,2]
[354342769,1740435055449,-500.0,0.00014109,2]
[354342770,1740435055459,-500.0,0.00014109,2]
[354342771,1740435055469,-648.17614041,0.00014109,2]
[354342772,1740435055478,-500.0,0.00014109,2]
[354342773,1740435055575,-500.0,0.00014109,2]
[354342774,1740435055585,-511.038228,0.00014109,2]
[354342775,1740435055595,-500.0,0.00014109,2]
[354342776,1740435055609,-511.038228,0.00014109,2]
[354342777,1740435055621,-690.030627,0.00014109,2]
[354342778,1740435055631,-1340.771391,0.00014109,2]
[354342779,1740435055642,-690.030627,0.00014109,2]
[354342780,1740435055652,-288.11,0.00014109,2]
[354342781,1740435055663,-666.01,0.00014109,2]
[354342782,1740435055674,-1340.771391,0.00014109,2]
[354342783,1740435055684,-500.0,0.00014109,2]
[354342784,1740435055695,-2633.2,0.00014109,2]
[354342785,1740435055705,-1856.81,0.00014109,2]
[354342786,1740435055718,-500.0,0.00014109,2]
[354342787,1740435055729,-500.0,0.00014109,2]
[354342788,1740435055740,-586.229669,0.00014109,2]
[354342789,1740435055751,-264.23,0.00014109,2]
[354342790,1740435055761,-586.229669,0.00014109,2]
[354342791,1740435055773,-4267.3,0.00014109,2]
[354342792,1740435055783,-674.84,0.00014109,2]
[354342793,1740435055794,-500.0,0.00014109,2]
[354342794,1740435055805,-151.0,0.00014109,2]
[354342795,1740435055818,-522.83,0.00014109,2]
[354342796,1740435055829,-151.0,0.00014109,2]
[354342797,1740435055839,-500.0,0.00014109,2]
[354342798,1740435055849,-598.94,0.00014109,2]
[354342799,1740435055869,-719.66,0.00014109,2]
[354342800,1740435055879,-500.0,0.00014109,2]
[354342801,1740435055889,-500.0,0.00014109,2]
[354342802,1740435055900,-625.36,0.00014109,2]
[354342803,1740435055910,-2857.36,0.00014109,2]
[354342804,1740435055920,-500.0,0.00014109,2]
[354342805,1740435055930,-500.0,0.00014109,2]
[354342806,1740435055940,-450.0,0.00014191,2]
[354342807,1740435055950,-450.0,0.00014191,2]
[354342808,1740435055960,-475.35,0.00014191,2]
[354342809,1740435055969,-171.49052145,0.00014191,2]
[354342810,1740435055979,-500.0,0.00014191,2]
[354342811,1740435055989,-500.0,0.00014191,2]
[354342812,1740435055999,-500.0,0.00014191,2]
[354342813,1740435056009,-500.0,0.00014191,2]
[354342814,1740435056019,-437.16,0.00014191,2]
[354342815,1740435056029,-2145.306791,0.00014191,2]
[354342816,1740435056039,-2145.306791,0.00014191,2]
[354342817,1740435056048,-500.0,0.00014191,2]
[354342818,1740435056059,-500.0,0.00014191,2]
[354342819,1740435056069,-248.88,0.00014191,2]
[354342820,1740435056084,-159.627817,0.00014191,2]
[354342821,1740435056093,-392.342675,0.00014191,2]
[354342822,1740435056107,-159.627817,0.00014191,2]
[354342823,1740435056121,-392.342675,0.00014191,2]
[354342824,1740435056132,-819.744848,0.00014191,2]
[354342825,1740435056143,-819.744848,0.00014191,2]
[354342826,1740435056153,-760.82,0.00014191,2]
[354342827,1740435056163,-829.91,0.00014191,2]
[354342828,1740435056174,-2969.05,0.00014191,2]
[354342829,1740435056184,-500.0,0.00014191,2]
[354342830,1740435056194,-500.0,0.00014191,2]
[354342831,1740435056204,-500.0,0.00014191,2]
[354342832,1740435056214,-1214.05,0.00014191,2]
[354342833,1740435056224,-500.0,0.00014191,2]
[354342834,1740435056233,-620.4,0.00014191,2]
[354342835,1740435056244,-500.0,0.00014191,2]
[354342836,1740435056254,-500.0,0.00014191,2]
[354342837,1740435056264,-511.038228,0.00014191,2]
[354342838,1740435056275,-500.0,0.00014191,2]
[354342839,1740435056285,-511.038228,0.00014191,2]
[354342840,1740435056295,-690.030627,0.00014191,2]
[354342841,1740435056305,-1340.771391,0.00014191,2]
[354342842,1740435056315,-690.030627,0.00014191,2]
[354342843,1740435056325,-666.01,0.00014191,2]
[354342844,1740435056335,-1340.771391,0.00014191,2]
[354342845,1740435056345,-500.0,0.00014191,2]
[354342846,1740435056362,-2633.2,0.00014191,2]
[354342847,1740435056373,-1856.81,0.00014191,2]
[354342848,1740435056383,-500.0,0.00014191,2]
[354342849,1740435056394,-500.0,0.00014191,2]
[354342850,1740435056404,-586.229669,0.00014191,2]
[354342851,1740435056415,-586.229669,0.00014191,2]
[354342852,1740435056426,-4267.3,0.00014191,2]
[354342853,1740435056436,-674.84,0.00014191,2]
[354342854,1740435056447,-500.0,0.00014191,2]
[354342855,1740435056459,-151.0,0.00014191,2]
[354342856,1740435056469,-522.83,0.00014191,2]
[354342857,1740435056480,-214.578998,0.00014191,2]
[354342858,1740435056490,-500.0,0.00014191,2]
[354342859,1740435056500,-598.94,0.00014191,2]
[354342860,1740435056510,-719.66,0.00014191,2]
[354342861,1740435056519,-500.0,0.00014191,2]
[354342862,1740435056529,-295.08,0.00014191,2]
[354342863,1740435056539,-625.36,0.00014191,2]
[354342864,1740435056549,-2857.36,0.00014191,2]
[354342865,1740435056559,-500.0,0.00014191,2]
[354342866,1740435056568,-1000.0,0.00014221,2]
[354342867,1740435056578,-500.0,0.00014221,2]
[354342868,1740435056588,-986.78569161,0.00014221,2]
[354342869,1740435056598,-207.89451888,0.00014246,2]
[354342870,1740435056613,-151.0,0.00014273,2]
[354342871,1740435056624,-197.11369,0.00014273,2]
[354342872,1740435056635,-251.496237,0.00014273,2]
[354342873,1740435056646,-251.496237,0.00014273,2]
[354342874,1740435056655,-248.372028,0.00014273,2]
[354342875,1740435056665,-248.372028,0.00014273,2]
[354342876,1740435056675,-282.7128,0.00014273,2]
[354342877,1740435056686,-282.7128,0.00014273,2]
[354342878,1740435056696,-151.0,0.00014273,2]
[354342879,1740435056706,-266.506003,0.00014273,2]
[354342880,1740435056716,-266.506003,0.00014273,2]
[354342881,1740435056726,-386.632629,0.00014273,2]
[354342882,1740435056735,-386.632629,0.00014273,2]
[354342883,1740435056745,-644.68,0.00014273,2]
[354342884,1740435056754,-500.0,0.00014273,2]
[354342885,1740435056763,-500.0,0.00014273,2]
[354342886,1740435056773,-307.141916,0.00014273,2]
[354342887,1740435056783,-307.141916,0.00014273,2]
[354342888,1740435056792,-500.0,0.00014273,2]
[354342889,1740435056803,-151.0,0.00014273,2]
[354342890,1740435056817,-151.0,0.00014273,2]
[354342891,1740435056827,-815.303282,0.00014273,7]
[354342892,1740435056837,-756.962769,0.00014273,2]
[354342893,1740435056847,-756.962769,0.00014273,2]
[354342894,1740435056863,-500.0,0.00014273,2]
[354342895,1740435056872,-500.0,0.00014273,2]
[354342896,1740435056882,-159.627817,0.00014273,2]
[354342897,1740435056892,-392.342675,0.00014273,2]
[354342898,1740435056903,-159.627817,0.00014273,2]
[354342899,1740435056913,-392.342675,0.00014273,2]
[354342900,1740435056923,-819.744848,0.00014273,2]
[354342901,1740435056935,-819.744848,0.00014273,2]
[354342902,1740435056945,-760.82,0.00014273,2]
[354342903,1740435056955,-829.91,0.00014273,2]
[354342904,1740435056965,-2969.05,0.00014273,2]
[354342905,1740435056975,-315.85,0.00014273,2]
[354342906,1740435056984,-500.0,0.00014273,2]
[354342907,1740435056995,-438.94,0.00014273,2]
[354342908,1740435057006,-1214.05,0.00014273,2]
[354342909,1740435057016,-500.0,0.00014273,2]
[354342910,1740435057026,-500.0,0.00014273,2]
[354342911,1740435057036,-500.0,0.00014273,2]
[354342912,1740435057046,-511.038228,0.00014273,2]
[354342913,1740435057056,-500.0,0.00014273,2]
[354342914,1740435057065,-511.038221,0.00014273,2]
[354342915,1740435057075,-690.030627,0.00014273,2]
[354342916,1740435057085,-1340.771391,0.00014273,2]
[354342917,1740435057096,-666.01,0.00014273,2]
[354342918,1740435057109,-690.030629,0.00014273,2]
[354342919,1740435057119,-1340.771399,0.00014273,2]
[354342920,1740435057129,-500.0,0.00014273,2]
[354342921,1740435057139,-2633.2,0.00014273,2]
[354342922,1740435057149,-1856.81,0.00014273,2]
[354342923,1740435057159,-500.0,0.00014273,2]
[354342924,1740435057169,-500.0,0.00014273,2]
[354342925,1740435057179,-586.229669,0.00014273,2]
[354342926,1740435057188,-586.229671,0.00014273,2]
[354342927,1740435057198,-4267.3,0.00014273,2]
[354342928,1740435057207,-674.84,0.00014273,2]
[354342929,1740435057217,-500.0,0.00014273,2]
[354342930,1740435057227,-151.0,0.00014273,2]
[354342931,1740435057236,-522.83,0.00014273,2]
[354342932,1740435057246,-500.0,0.00014273,2]
[354342933,1740435057256,-598.94,0.00014273,2]
[354342934,1740435057265,-719.66,0.00014273,2]
[354342935,1740435057275,-500.0,0.00014273,2]
[354342936,1740435057284,-625.36,0.00014273,2]
[354342937,1740435057294,-2857.36,0.00014273,2]
[354342938,1740435057304,-441.58,0.00014273,2]
[354342939,1740435057314,-450.0,0.00014356,2]
[354342940,1740435057324,-450.0,0.00014356,2]
[354342941,1740435057334,-176.344604,0.00014356,2]
[354342942,1740435057344,-176.344604,0.00014356,2]
[354342943,1740435057357,-500.0,0.00014356,2]
[354342944,1740435057367,-500.0,0.00014356,2]
[354342945,1740435057377,-500.0,0.00014356,2]
[354342946,1740435057388,-2145.306791,0.00014356,2]
[354342947,1740435057399,-2145.306791,0.00014356,2]
[354342948,1740435057409,-500.0,0.00014356,2]
[354342949,1740435057419,-500.0,0.00014356,2]
[354342950,1740435057507,-760.82,0.00014356,2]
[354342951,1740435057517,-829.91,0.00014356,2]
[354342952,1740435057527,-2969.05,0.00014356,2]
[354342953,1740435057537,-500.0,0.00014356,2]
[354342954,1740435057547,-1214.05,0.00014356,2]
[354342955,1740435057558,-500.0,0.00014356,2]
[354342956,1740435057568,-500.0,0.00014356,2]
[354342957,1740435057578,-215.57,0.00014356,2]
[354342958,1740435057588,-500.0,0.00014356,2]
[354342959,1740435057598,-666.01,0.00014356,2]
[354342960,1740435057611,-500.0,0.00014356,2]
[354342961,1740435057621,-2633.2,0.00014356,2]
[354342962,1740435057632,-1856.81,0.00014356,2]
[354342963,1740435057643,-500.0,0.00014356,2]
[354342964,1740435057653,-500.0,0.00014356,2]
[354342965,1740435057663,-4267.3,0.00014356,2]
[354342966,1740435057674,-674.84,0.00014356,2]
[354342967,1740435057684,-500.0,0.00014356,2]
[354342968,1740435057694,-522.83,0.00014356,2]
[354342969,1740435057704,-174.59,0.00014356,2]
[354342970,1740435057714,-598.94,0.00014356,2]
[354342971,1740435057724,-719.66,0.00014356,2]
[354342972,1740435057734,-500.0,0.00014356,2]
[354342973,1740435057744,-625.36,0.00014356,2]
[354342974,1740435057753,-2857.36,0.00014356,2]
[354342975,1740435057763,-1000.0,0.00014421,2]
[354342976,1740435057773,-1000.0,0.00014421,2]
[354342977,1740435057783,-168.22590784,0.00014421,2]
[354342978,1740435057792,-30246.81512585,0.0001443,2]
[354342979,1740435057802,-278.07179,0.0001443,2]
[354342980,1740435057816,-266.506003,0.0001443,2]
[354342981,1740435057826,-266.506003,0.0001443,2]
[354342982,1740435057835,-386.632629,0.0001443,2]
[354342983,1740435057845,-386.632629,0.0001443,2]
[354342984,1740435057857,-307.141916,0.0001443,2]
[354342985,1740435057867,-307.141916,0.0001443,2]
[354342986,1740435057876,-151.0,0.0001443,2]
[354342987,1740435057885,-151.0,0.0001443,2]
[354342988,1740435057895,-756.962769,0.0001443,2]
[354342989,1740435057905,-756.962769,0.0001443,2]
[354342990,1740435057915,-159.627817,0.0001443,2]
[354342991,1740435057924,-392.342675,0.0001443,2]
[354342992,1740435057935,-159.627823,0.0001443,2]
[354342993,1740435057944,-392.342667,0.0001443,2]
[354342994,1740435057953,-819.744848,0.0001443,2]
[354342995,1740435057962,-819.74484606,0.0001443,2]
[354342996,1740435057971,-450.0,0.00014438,2]
[354342997,1740435057981,-450.0,0.00014438,2]
[354342998,1740435057990,-251.496237,0.00014438,2]
[354342999,1740435057999,-251.496237,0.00014438,2]
[354343000,1740435058008,-176.344604,0.00014438,2]
[354343001,1740435058017,-176.344604,0.00014438,2]
[354343002,1740435058027,-248.372028,0.00014438,2]
[354343003,1740435058036,-248.372028,0.00014438,2]
[354343004,1740435058045,-282.7128,0.00014438,2]
[354343005,1740435058055,-282.7128,0.00014438,2]
[354343006,1740435058064,-151.0,0.00014438,2]
[354343007,1740435058073,-500.0,0.00014438,2]
[354343008,1740435058082,-500.0,0.00014438,2]
[354343009,1740435058091,-500.0,0.00014438,2]
[354343010,1740435058101,-2145.306791,0.00014438,2]
[354343011,1740435058114,-2145.306791,0.00014438,2]
[354343012,1740435058123,-353.08,0.00014438,2]
[354343013,1740435058133,-500.0,0.00014438,2]
[354343014,1740435058143,-760.82,0.00014438,2]
[354343015,1740435058152,-829.91,0.00014438,2]
[354343016,1740435058162,-2969.05,0.00014438,2]
[354343017,1740435058172,-500.0,0.00014438,2]
[354343018,1740435058182,-1214.05,0.00014438,2]
[354343019,1740435058192,-500.0,0.00014438,2]
[354343020,1740435058202,-500.0,0.00014438,2]
[354343021,1740435058212,-500.0,0.00014438,2]
[354343022,1740435058222,-666.01,0.00014438,2]
[354343023,1740435058232,-503.76,0.00014438,2]
[354343024,1740435058242,-2633.2,0.00014438,2]
[354343025,1740435058252,-1856.81,0.00014438,2]
[354343026,1740435058262,-500.0,0.00014438,2]
[354343027,1740435058271,-500.0,0.00014438,2]
[354343028,1740435058282,-674.84,0.00014438,2]
[354343029,1740435058292,-4267.3,0.00014438,2]
[354343030,1740435058302,-500.0,0.00014438,2]
[354343031,1740435058312,-522.83,0.00014438,2]
[354343032,1740435058322,-598.94,0.00014438,2]
[354343033,1740435058332,-719.66,0.00014438,2]
[354343034,1740435058342,-500.0,0.00014438,2]
[354343035,1740435058352,-625.36,0.00014438,2]
[354343036,1740435058367,-2857.36,0.00014438,2]
[354343037,1740435058377,-109784.49049246,0.000145,2]
[354343038,1740435058387,-7167.0,0.000145,2]
[354343039,1740435058397,-450.0,0.000145,2]
[354343040,1740435058406,-450.0,0.000145,2]
[354343041,1740435058416,-251.496237,0.000145,2]
[354343042,1740435058426,-251.496237,0.000145,2]
[354343043,1740435058436,-176.344604,0.000145,2]
[354343044,1740435058447,-176.344604,0.000145,2]
[354343045,1740435058457,-248.372028,0.000145,2]
[354343046,1740435058467,-248.372028,0.000145,2]
[354343047,1740435058477,-282.7128,0.000145,2]
[354343048,1740435058486,-282.7128,0.000145,2]
[354343049,1740435058496,-151.0,0.000145,2]
[354343050,1740435058505,-266.506003,0.000145,2]
[354343051,1740435058516,-266.506003,0.000145,2]
[354343052,1740435058526,-386.632629,0.000145,2]
[354343053,1740435058536,-386.632629,0.000145,2]
[354343054,1740435058546,-307.141916,0.000145,2]
[354343055,1740435058556,-307.141916,0.000145,2]
[354343056,1740435058567,-151.0,0.000145,2]
[354343057,1740435058577,-151.0,0.000145,2]
[354343058,1740435058586,-2145.306791,0.000145,2]
[354343059,1740435058595,-2145.306791,0.000145,2]
[354343060,1740435058607,-756.962769,0.000145,2]
[354343061,1740435058618,-756.962769,0.000145,2]
[354343062,1740435058628,-251.496237,0.0001452,2]
[354343063,1740435058639,-251.496237,0.0001452,2]
[354343064,1740435058649,-248.372028,0.0001452,2]
[354343065,1740435058659,-248.372028,0.0001452,2]
[354343066,1740435058670,-282.7128,0.0001452,2]
[354343067,1740435058680,-282.7128,0.0001452,2]
[354343068,1740435058690,-151.0,0.0001452,2]
[354343069,1740435058700,-266.506003,0.0001452,2]
[354343070,1740435058711,-266.506003,0.0001452,2]